bitfinex-derivatives/quotes_ETHF0:USTF0_20210107
["timestamp","ask_amount","ask_price","bid_price","bid_amount"]
[1610022126925,4.00959,1205.7,1205.5,64.64519]
[1610022133540,39.697,1206.2,1205.5,64.64519]
[1610022134842,39.697,1206.2,1205.9,4.00959]
[1610022135442,39.697,1206.2,1205.9,12.06289]
[1610022136845,4.00959,1206.0,1205.9,12.06289]
[1610022138644,4.00959,1206.0,1205.9,8.0533]
[1610022138844,4.00959,1206.0,1205.9,12.06289]
[1610022139950,4.00959,1206.0,1205.9,8.0533]
[1610022146852,4.00959,1206.0,1205.9,12.06289]
[1610022147652,39.697,1206.2,1205.9,12.06289]
[1610022147852,3.674,1206.2,1205.9,12.06289]
[1610022148855,4.00959,1206.1,1205.9,12.06289]
[1610022152555,4.00959,1206.1,1205.9,4.00959]
[1610022153363,4.00959,1206.1,1206.0,61.6895]
[1610022155065,3.674,1206.2,1206.0,61.6895]
[1610022157468,3.674,1206.2,1205.9,4.00959]
[1610022157671,3.674,1206.2,1204.8,5.9229]
[1610022157870,3.674,1206.2,1205.2,63.4251]
[1610022159170,4.00959,1205.6,1205.4,4.00959]
[1610022161674,3.674,1206.2,1205.4,4.00959]
[1610022163073,3.674,1206.2,1206.1,4.00959]
[1610022163474,4.00959,1206.7,1206.2,53.9588]
[1610022164676,13.9853,1207.3,1206.2,53.9588]
[1610022164876,6.6083,1207.3,1206.2,53.9588]
[1610022165075,4.00959,1206.9,1206.8,4.00959]
[1610022165877,4.00959,1206.9,1206.2,53.9588]
[1610022167082,4.00959,1206.7,1206.5,4.00959]
[1610022167677,4.00959,1206.7,1206.2,53.9588]
[1610022169080,3.674,1207.3,1206.5,4.00959]
[1610022170081,3.674,1207.3,1206.2,53.9588]
[1610022171080,4.00959,1206.3,1206.2,57.96839]
[1610022171282,4.00959,1206.3,1206.2,4.00959]
[1610022171481,11.051,1207.3,1206.2,60.81019]
[1610022173085,11.051,1207.3,1206.7,4.00959]
[1610022173990,11.051,1207.3,1206.2,56.8006]
[1610022175192,11.051,1207.3,1206.6,4.00959]
[1610022175391,11.051,1207.3,1206.7,7.2362]
[1610022175792,7.377,1207.3,1206.7,7.2362]
[1610022175993,7.377,1207.3,1206.8,68.9961]
[1610022176193,7.377,1207.3,1206.6,4.00959]
[1610022176393,7.377,1207.3,1206.8,68.5717]
[1610022176995,7.377,1207.3,1206.6,4.00959]
[1610022177195,4.00959,1206.8,1206.6,4.00959]
[1610022177394,4.00959,1206.8,1206.6,56.62359]
[1610022178496,7.377,1207.3,1206.6,4.00959]
[1610022179096,11.38659,1207.3,1207.2,70.95769]
[1610022179296,4.00959,1207.3,1207.2,70.95769]
[1610022182098,4.00959,1207.3,1207.2,4.00959]
[1610022182298,15.06059,1207.3,1207.0,66.0703]
[1610022182499,11.38659,1207.3,1207.0,66.0703]
[1610022183202,4.00959,1207.1,1207.0,66.0703]
[1610022193315,4.00959,1207.1,1207.0,70.07989]
[1610022193814,4.00959,1207.1,1207.0,66.0703]
[1610022198620,4.00959,1207.1,1205.2,6.0138]
[1610022198820,7.68359,1207.1,1205.2,6.0138]
[1610022199022,7.68359,1207.1,1206.5,53.1952]
[1610022199221,4.00959,1206.6,1206.5,57.20479]
[1610022199421,4.00959,1206.6,1206.5,53.1952]
[1610022201323,4.00959,1206.6,1206.5,57.20479]
[1610022202521,4.00959,1206.6,1206.5,53.1952]
[1610022204127,4.00959,1206.6,1206.0,4.00959]
[1610022205024,4.00959,1206.6,1205.8,68.3485]
[1610022205423,4.00959,1205.9,1205.8,68.3485]
[1610022207225,4.00959,1205.9,1204.4,5.9081]
[1610022207427,4.00959,1205.6,1205.4,4.00959]
[1610022207626,30.0,1207.0,1205.4,4.00959]
[1610022207826,30.0,1207.0,1205.4,72.73339]
[1610022208426,30.0,1207.0,1202.6,5.7467]
[1610022208625,30.0,1207.0,1205.0,54.2638]
[1610022209428,4.00959,1205.3,1205.1,4.00959]
[1610022212230,32.1515,1206.6,1205.1,4.00959]
[1610022212830,30.0,1206.6,1205.1,4.00959]
[1610022213029,30.0,1206.6,1205.5,57.1264]
[1610022213230,30.0,1206.8,1205.5,57.1264]
[1610022213429,4.00959,1205.6,1205.5,57.1264]
[1610022213631,4.00959,1205.6,1205.1,4.00959]
[1610022213831,4.00959,1205.6,1205.1,63.52629]
[1610022216432,32.1628,1206.6,1205.1,63.52629]
[1610022216632,30.0,1206.6,1205.1,4.00959]
[1610022216832,2.1457,1206.9,1205.6,48.087]
[1610022217032,33.674,1207.1,1205.6,48.087]
[1610022217433,4.00959,1205.7,1205.6,48.087]
[1610022218233,4.00959,1205.7,1205.5,4.00959]
[1610022219434,4.00959,1205.9,1205.5,4.00959]
[1610022220040,2.965,1206.9,1205.5,4.00959]
[1610022220739,32.965,1206.9,1205.5,4.00959]
[1610022221439,4.00959,1205.6,1205.5,4.00959]
[1610022222242,32.965,1206.9,1205.5,4.00959]
[1610022223543,4.00959,1205.7,1205.5,4.00959]
[1610022228449,4.00959,1205.7,1205.4,47.0159]
[1610022228850,4.00959,1205.7,1203.6,5.8829]
[1610022229050,7.68359,1205.7,1204.2,46.3104]
[1610022229652,7.68359,1205.7,1205.5,4.00959]
[1610022229852,4.00959,1205.7,1205.5,4.00959]
[1610022230053,4.00959,1205.7,1205.2,68.5071]
[1610022231553,4.00959,1205.3,1205.1,4.00959]
[1610022231954,2.5054,1206.6,1205.1,4.00959]
[1610022232153,2.5054,1206.6,1205.4,51.7839]
[1610022232353,32.5054,1206.6,1205.4,51.7839]
[1610022233638,4.00959,1205.5,1205.4,51.7839]
[1610022235355,4.00959,1205.5,1205.1,4.00959]
[1610022237557,4.00959,1205.5,1205.3,4.00959]
[1610022243663,4.00959,1205.5,1205.2,69.3372]
[1610022245665,4.00959,1205.5,1205.3,4.00959]
[1610022246966,4.00959,1205.5,1205.2,69.3372]
[1610022247666,4.00959,1205.5,1205.3,4.00959]
[1610022251475,4.00959,1205.5,1205.0,46.6268]
[1610022251872,4.00959,1205.5,1205.3,4.00959]
[1610022252972,4.00959,1205.5,1205.0,46.6268]
[1610022253774,4.00959,1205.5,1205.2,4.00959]
[1610022254275,4.00959,1205.5,1205.2,13.09379]
[1610022255778,4.00959,1205.5,1205.4,4.00959]
[1610022256178,4.00959,1205.5,1205.2,9.0842]
[1610022256380,4.00959,1205.5,1203.6,5.8829]
[1610022256579,15.06059,1205.5,1203.6,5.8829]
[1610022256778,15.06059,1205.5,1204.3,51.2726]
[1610022257880,15.06059,1205.5,1205.3,4.00959]
[1610022258281,11.38659,1205.5,1205.3,4.00959]
[1610022258684,11.38659,1205.5,1205.3,54.78789]
[1610022260888,7.377,1205.5,1205.3,54.78789]
[1610022261088,7.377,1205.5,1205.3,4.00959]
[1610022262690,6.2401,1208.0,1205.3,4.00959]
[1610022262691,47.074,1207.3,1206.1,56.0715]
[1610022262890,11.051,1207.3,1205.3,4.00959]
[1610022263090,22.043,1207.3,1206.2,57.1777]
[1610022263294,22.043,1207.3,1205.3,4.00959]
[1610022263693,22.043,1207.3,1206.2,49.2988]
[1610022263890,4.00959,1206.8,1206.4,4.00959]
[1610022264094,4.00959,1206.8,1206.6,49.0685]
[1610022265791,4.00959,1206.8,1206.6,53.07809]
[1610022269196,4.00959,1206.8,1206.6,49.0685]
[1610022269897,22.043,1207.3,1206.6,53.07809]
[1610022270999,22.043,1207.3,1206.6,4.00959]
[1610022271199,22.043,1207.3,1207.1,66.9177]
[1610022271499,3.674,1207.3,1207.1,66.9177]
[1610022271900,4.00959,1207.2,1207.1,70.92729]
[1610022275003,39.697,1208.1,1207.1,70.92729]
[1610022275206,39.697,1208.1,1207.1,4.00959]
[1610022275407,39.697,1208.1,1207.6,68.6271]
[1610022276009,4.40940176,1207.7,1207.6,68.6271]
[1610022276409,4.40940176,1207.7,1207.3,4.00959]
[1610022276608,4.40940176,1207.7,1207.3,59.99919]
[1610022277208,4.40940176,1207.7,1207.3,55.9896]
[1610022279716,4.40940176,1207.7,1205.9,5.831]
[1610022279916,4.40940176,1207.7,1207.2,59.97499]
[1610022280116,4.40940176,1207.7,1207.2,4.00959]
[1610022281921,4.40940176,1207.7,1207.6,4.00959]
[1610022283533,4.40940176,1207.7,1205.9,5.831]
[1610022283725,8.08340176,1207.7,1205.9,5.831]
[1610022283927,8.08340176,1207.7,1207.4,55.64289]
[1610022284126,4.40940176,1207.7,1207.4,55.64289]
[1610022286129,4.00959,1207.5,1207.4,55.64289]
[1610022289632,4.00959,1207.5,1207.4,51.6333]
[1610022289831,4.00959,1207.5,1205.9,5.831]
[1610022290032,3.674,1207.5,1206.2,46.7012]
[1610022290835,3.674,1207.5,1205.9,5.831]
[1610022291034,3.674,1207.5,1206.6,67.3566]
[1610022291236,7.77681176,1207.7,1206.6,67.3566]
[1610022291534,0.39981176,1207.7,1206.6,67.3566]
[1610022292038,0.39981176,1207.7,1207.3,4.00959]
[1610022292438,0.39981176,1207.7,1206.6,67.3566]
[1610022294043,0.39981176,1207.7,1206.9,4.00959]
[1610022295946,0.39981176,1207.7,1206.6,67.3566]
[1610022296145,4.00959,1207.0,1206.6,67.3566]
[1610022296347,4.00959,1207.0,1206.5,4.00959]
[1610022296546,4.00959,1207.0,1206.5,55.62299]
[1610022297346,4.07381176,1207.7,1206.5,4.00959]
[1610022297549,0.39981176,1207.7,1207.1,66.7651]
[1610022298150,4.00959,1207.2,1207.1,66.7651]
[1610022299348,4.00959,1207.2,1207.0,4.00959]
[1610022300652,0.39981176,1207.7,1207.0,4.00959]
[1610022301855,0.39981176,1207.7,1207.3,46.5053]
[1610022302055,4.00959,1207.5,1207.4,4.00959]
[1610022306868,0.39981176,1207.7,1207.4,4.00959]
[1610022308169,0.39981176,1207.7,1207.6,4.00959]
[1610022314277,15.06059,1208.6,1208.2,69.0498]
[1610022314579,11.38659,1208.6,1208.2,69.0498]
[1610022315779,7.377,1208.6,1207.6,4.00959]
[1610022315979,7.377,1208.6,1208.4,63.0505]
[1610022316180,7.377,1208.6,1208.5,4.00959]
[1610022316379,4.00959,1208.8,1208.5,4.00959]
[1610022316580,4.07381176,1209.4,1208.5,4.00959]
[1610022316780,4.07381176,1209.4,1209.0,52.8511]
[1610022318180,4.00959,1209.2,1209.1,4.00959]
[1610022318981,4.00959,1209.2,1206.8,5.9269]
[1610022319280,4.00959,1209.2,1207.7,68.7975]
[1610022319481,4.00959,1209.2,1206.8,5.9269]
[1610022319682,4.00959,1209.2,1208.6,61.7286]
[1610022320081,4.07381176,1209.4,1209.1,4.00959]
[1610022322186,4.07381176,1209.4,1209.3,4.00959]
[1610022322386,0.39981176,1209.4,1209.3,4.00959]
[1610022341804,0.025,1210.0,1209.3,4.00959]
[1610022342002,11.051,1211.4,1210.6,60.8567]
[1610022342202,6.1085,1213.8,1211.2,65.795]
[1610022342203,22.043,1213.5,1211.2,65.795]
[1610022342401,4.07381176,1211.5,1211.3,4.00959]
[1610022342602,0.39981176,1211.5,1211.4,59.5754]
[1610022343305,0.39981176,1211.5,1211.3,4.00959]
[1610022344308,4.40940176,1211.5,1211.0,64.7481]
[1610022344507,4.40940176,1211.5,1052.3,0.61421067]
[1610022344708,15.46040176,1211.5,1199.2,68.31230773]
[1610022344908,15.46040176,1211.5,1200.3,68.2478]
[1610022345108,15.46040176,1211.5,1199.2,68.31230773]
[1610022345309,15.46040176,1211.5,1205.5,51.7211]
[1610022345510,8.08340176,1211.5,1200.8,22.043]
[1610022345709,8.08340176,1211.5,1205.9,47.4716]
[1610022345908,8.08340176,1211.5,1200.8,58.066]
[1610022346109,8.08340176,1211.5,1206.2,64.117]
[1610022346309,8.08340176,1211.5,1211.4,4.00959]
[1610022346509,4.40940176,1211.5,1211.4,4.00959]
[1610022346709,4.40940176,1211.5,1211.0,66.3599]
[1610022346909,4.40940176,1211.5,1200.8,58.066]
[1610022347108,8.08340176,1211.5,1200.8,58.066]
[1610022347309,15.46040176,1211.5,1200.8,58.066]
[1610022347509,8.08340176,1211.5,1200.8,58.066]
[1610022348311,4.00959,1211.2,1200.8,58.066]
[1610022349109,11.45081176,1211.5,1200.8,58.066]
[1610022349310,4.07381176,1211.5,1200.8,58.066]
[1610022350611,0.39981176,1211.5,1200.8,58.066]
[1610022352113,0.39981176,1211.5,1200.9,6.0407]
[1610022352514,0.39981176,1211.5,1206.5,61.2014]
[1610022352714,0.39981176,1211.5,1200.9,6.0407]
[1610022352914,0.39981176,1211.5,1202.5,22.043]
[1610022353316,0.39981176,1211.5,1202.6,6.178]
[1610022353514,0.39981176,1211.5,1206.0,52.2683]
[1610022353714,0.39981176,1211.5,1202.6,12.1438]
[1610022353914,0.39981176,1211.5,1207.2,53.5762]
[1610022354116,0.39981176,1211.5,1202.5,22.043]
[1610022354316,0.39981176,1211.5,1207.3,5.9078]
[1610022354516,0.39981176,1211.5,1209.5,57.6793]
[1610022358119,0.39981176,1211.5,1206.4,11.8875]
[1610022358318,0.39981176,1211.5,1211.0,63.6428]
[1610022369430,0.39981176,1211.5,1208.5,11.7711]
[1610022369631,0.39981176,1211.5,1210.8,68.6206]
[1610022374534,0.39981176,1211.5,1208.5,11.7711]
[1610022374935,0.39981176,1211.5,1211.3,48.9225]
[1610022375134,0.39981176,1211.5,1209.9,54.9361]
[1610022375334,0.39981176,1211.5,1208.5,11.7711]
[1610022375335,0.39981176,1211.5,1208.5,5.769]
[1610022375735,0.39981176,1211.5,1209.7,56.7238]
[1610022376337,0.39981176,1211.5,1209.8,5.7481]
[1610022380440,4.00959,1211.0,1209.8,5.7481]
[1610022381843,4.00959,1211.0,1208.5,5.769]
[1610022382044,4.00959,1211.0,1208.5,60.6488]
[1610022382443,4.00959,1210.2,1208.5,60.6488]
[1610022382844,5.65649,1210.2,1208.5,60.6488]
[1610022383145,5.65649,1210.2,1208.5,54.8798]
[1610022383344,4.00959,1210.2,1208.5,54.8798]
[1610022384446,2.4304,1211.4,1208.5,54.8798]
[1610022384447,4.00959,1209.8,1208.5,54.8798]
[1610022385050,2.4304,1211.4,1208.5,54.8798]
[1610022385451,2.4304,1211.4,1208.6,6.184]
[1610022386451,4.00959,1209.6,1208.6,6.184]
[1610022388355,2.3758,1210.8,1208.6,6.184]
[1610022388756,2.8606,1211.1,1208.6,6.184]
[1610022390056,0.39981176,1211.5,1209.3,59.7625]
[1610022390459,4.00959,1210.7,1209.3,59.7625]
[1610022391659,0.39981176,1211.5,1209.3,59.7625]
[1610022394462,4.00959,1211.4,1209.3,59.7625]
[1610022394862,0.39981176,1211.5,1209.3,59.7625]
[1610022396564,0.39981176,1211.5,1208.6,6.184]
[1610022396764,0.39981176,1211.5,1210.2,48.4132]
[1610022426698,4.00959,1211.3,1208.6,6.184]
[1610022426901,4.00959,1211.3,1208.9,50.4015]
[1610022428695,4.00959,1210.6,1208.9,50.4015]
[1610022429296,0.39981176,1211.5,1208.9,50.4015]
[1610022430198,45.61051176,1212.2,1208.9,50.4015]
[1610022430400,7.377,1212.1,1208.6,6.184]
[1610022430599,7.377,1212.1,1209.4,61.0885]
[1610022430798,4.00959,1210.9,1205.0,5.884]
[1610022430999,4.00959,1210.9,1205.0,11.7582]
[1610022431201,4.00959,1210.9,1207.7,51.1777]
[1610022431403,7.377,1212.1,1207.7,51.1777]
[1610022431602,7.377,1212.1,1207.8,5.9991]
[1610022432302,7.377,1212.1,1207.9,6.1442]
[1610022432701,4.00959,1211.1,1207.9,6.1442]
[1610022432901,7.377,1212.1,1207.9,6.1442]
[1610022434702,4.00959,1210.9,1207.9,6.1442]
[1610022436600,4.00959,1210.9,1209.0,49.3705]
[1610022436801,4.00959,1210.7,1209.0,49.3705]
[1610022440504,4.00959,1210.7,1209.1,5.6632]
[1610022442906,4.00959,1210.3,1209.1,5.6632]
[1610022443105,68.6837,1211.3,1209.1,5.6632]
[1610022444408,16.1578,1212.1,1209.4,68.0166]
[1610022444809,4.00959,1210.9,1209.4,68.0166]
[1610022446812,4.00959,1210.6,1209.4,68.0166]
[1610022449317,15.8572,1212.1,1209.4,68.0166]
[1610022450818,4.00959,1210.6,1209.4,68.0166]
[1610022453821,15.8572,1212.1,1209.4,68.0166]
[1610022454221,13.5389,1212.1,1209.4,68.0166]
[1610022454825,4.00959,1211.1,1209.4,68.0166]
[1610022456824,4.00959,1210.5,1209.4,68.0166]
[1610022457626,13.5389,1212.1,1209.4,68.0166]
[1610022458930,4.00959,1210.5,1209.4,68.0166]
[1610022459129,13.5389,1212.1,1209.4,68.0166]
[1610022460834,4.00959,1210.5,1209.4,68.0166]
[1610022461634,13.5389,1212.1,1209.4,68.0166]
[1610022462934,4.00959,1210.5,1209.4,68.0166]
[1610022466341,4.00959,1210.5,1209.1,5.6632]
[1610022468844,4.00959,1209.8,1209.1,5.6632]
[1610022469245,60.0726,1211.5,1209.1,5.6632]
[1610022470848,4.00959,1209.8,1208.9,55.2952]
[1610022472655,4.00959,1209.8,1207.6,6.2087]
[1610022472852,4.00959,1208.8,1207.6,67.935]
[1610022473460,58.5069,1210.4,1207.6,67.935]
[1610022474856,4.00959,1208.7,1207.6,67.935]
[1610022475855,58.5069,1210.4,1207.6,67.935]
[1610022476058,6.357,1211.0,1207.6,6.2087]
[1610022476259,6.357,1211.0,1208.2,56.8343]
[1610022476465,3.674,1211.0,1208.2,56.8343]
[1610022476857,4.00959,1209.8,1208.3,6.0985]
[1610022477559,3.674,1211.0,1208.3,6.0985]
[1610022477759,3.674,1211.0,1209.2,52.6536]
[1610022478960,4.00959,1210.0,1209.2,52.6536]
[1610022479160,4.00959,1210.0,1208.3,6.0985]
[1610022479361,3.674,1211.0,1209.2,59.1865]
[1610022480962,4.00959,1210.3,1209.2,59.1865]
[1610022481663,4.00959,1210.3,1208.3,6.0985]
[1610022481864,4.00959,1210.3,1208.9,60.1321]
[1610022482965,4.00959,1209.7,1208.9,60.1321]
[1610022487073,11.051,1211.0,1208.9,60.1321]
[1610022488974,4.00959,1209.2,1208.9,60.1321]
[1610022489175,4.00959,1209.2,1208.3,6.0985]
[1610022489377,4.00959,1209.2,1208.3,69.5902]
[1610022490374,4.00959,1209.2,1208.3,63.4917]
[1610022490978,4.00959,1208.5,1208.3,63.4917]
[1610022491178,4.00959,1208.5,1207.6,6.2087]
[1610022491577,58.6751,1209.9,1207.6,6.2087]
[1610022491777,62.3491,1209.9,1207.6,6.2087]
[1610022492777,62.3491,1209.9,1207.5,50.8082]
[1610022492977,4.00959,1208.2,1207.5,50.8082]
[1610022493178,4.00959,1208.2,1207.2,5.9228]
[1610022493380,4.00959,1208.2,1207.3,54.8437]
[1610022495078,4.00959,1207.7,1207.2,5.9228]
[1610022496279,54.3917,1208.9,1207.2,5.9228]
[1610022496982,4.00959,1207.7,1207.2,5.9228]
[1610022499282,4.00959,1207.7,1207.2,5.1228]
[1610022501386,4.00959,1207.7,1207.2,4.3228]
[1610022501586,4.00959,1207.7,1206.8,65.4885]
[1610022502287,3.674,1209.9,1206.1,6.2205]
[1610022502491,3.674,1209.9,1206.9,64.3321]
[1610022502690,3.674,1209.9,1207.0,50.3088]
[1610022503087,4.00959,1207.8,1207.0,50.3088]
[1610022503288,3.674,1209.9,1207.0,50.3088]
[1610022504990,4.00959,1208.1,1207.0,50.3088]
[1610022510497,4.00959,1208.1,1206.1,6.2205]
[1610022510697,4.00959,1208.1,1206.5,47.8642]
[1610022510999,4.00959,1207.7,1206.5,47.8642]
[1610022511900,70.1086,1209.3,1206.5,47.8642]
[1610022513001,4.00959,1207.5,1206.6,5.7345]
[1610022517909,5.8751,1209.2,1206.6,5.7345]
[1610022519011,4.00959,1207.8,1206.6,5.7345]
[1610022519211,7.377,1209.3,1207.3,57.5181]
[1610022519711,7.377,1209.3,1206.6,5.7345]
[1610022519909,7.377,1209.3,1207.5,56.3683]
[1610022520911,7.377,1209.3,1206.6,5.7345]
[1610022521109,4.00959,1208.6,1206.6,5.7345]
[1610022521610,4.00959,1208.6,1207.5,48.0556]
[1610022522413,7.377,1209.3,1206.6,5.7345]
[1610022522612,7.377,1209.3,1207.8,54.6767]
[1610022522812,7.377,1209.3,1206.6,5.7345]
[1610022523013,3.674,1209.9,1207.8,60.4853]
[1610022523215,4.00959,1209.2,1207.8,60.4853]
[1610022526218,4.00959,1209.2,1206.1,6.2205]
[1610022526415,4.00959,1209.2,1207.7,46.9501]
[1610022527117,4.00959,1208.9,1207.7,46.9501]
[1610022528522,22.043,1209.9,1206.1,6.2205]
[1610022528921,22.043,1209.9,1207.6,59.1889]
[1610022529122,4.00959,1209.6,1206.1,6.2205]
[1610022529322,4.00959,1209.6,1208.3,65.3966]
[1610022531224,4.00959,1209.4,1208.3,65.3966]
[1610022532224,14.666,1209.9,1206.8,11.7189]
[1610022532423,14.666,1209.9,1209.3,54.1656]
[1610022532623,11.051,1211.1,1209.3,54.1656]
[1610022533224,4.00959,1210.1,1209.3,54.1656]
[1610022533425,4.00959,1210.1,1208.2,61.0684]
[1610022533625,7.68359,1210.1,1207.5,6.0718]
[1610022533826,7.68359,1210.1,1208.2,48.3036]
[1610022538731,7.68359,1210.1,1207.5,6.0718]
[1610022539135,7.68359,1210.1,1208.6,60.5004]
[1610022539333,7.68359,1210.1,1207.5,6.0718]
[1610022539533,4.00959,1210.1,1208.6,47.8472]
[1610022539933,4.00959,1210.1,1207.5,6.0718]
[1610022540537,4.00959,1210.1,1209.1,55.6953]
[1610022543137,4.00959,1209.7,1209.1,55.6953]
[1610022543342,11.051,1211.1,1209.1,55.6953]
[1610022544038,19.6915,1211.1,1209.1,55.6953]
[1610022544839,41.051,1211.1,1207.6,6.0553]
[1610022545040,60.4451,1210.9,1207.9,66.8314]
[1610022545244,4.00959,1209.0,1207.9,66.8314]
[1610022545642,60.4451,1210.9,1207.9,66.8314]
[1610022545844,90.4451,1210.9,1207.9,66.8314]
[1610022547146,4.00959,1208.6,1207.9,66.8314]
[1610022547745,4.00959,1208.6,1207.6,6.0553]
[1610022548146,4.00959,1208.6,1207.7,57.2314]
[1610022551148,4.00959,1208.3,1207.7,57.2314]
[1610022551350,74.057,1209.9,1207.7,57.2314]
[1610022553252,4.00959,1208.7,1207.7,57.2314]
[1610022555352,4.00959,1208.2,1207.7,57.2314]
[1610022558956,4.00959,1208.2,1207.6,6.0553]
[1610022559356,4.00959,1208.2,1207.0,68.0262]
[1610022560658,56.2793,1208.8,1207.0,68.0262]
[1610022560861,3.674,1208.8,1206.6,5.7912]
[1610022561058,3.674,1208.8,1207.3,47.5629]
[1610022562360,70.7733,1209.9,1207.3,47.5629]
[1610022563363,4.00959,1208.2,1207.3,47.5629]
[1610022563762,70.7733,1209.9,1207.3,47.5629]
[1610022563961,70.7733,1209.9,1206.6,5.7912]
[1610022563962,22.043,1209.9,1206.6,5.7912]
[1610022564162,22.043,1209.9,1207.7,48.3648]
[1610022565366,4.00959,1209.3,1207.7,48.3648]
[1610022566868,3.674,1209.9,1207.7,48.3648]
[1610022567267,4.00959,1209.6,1207.7,48.3648]
[1610022569369,4.00959,1209.3,1207.7,48.3648]
[1610022571273,4.00959,1208.9,1207.7,48.3648]
[1610022574575,4.00959,1208.9,1206.6,5.7912]
[1610022574775,7.68359,1208.9,1206.6,5.7912]
[1610022574973,7.68359,1208.9,1207.2,66.4877]
[1610022577476,4.00959,1208.9,1207.2,66.4877]
[1610022577780,7.68359,1208.9,1207.2,66.4877]
[1610022579379,4.00959,1208.6,1207.2,66.4877]
[1610022579582,3.674,1208.9,1207.2,66.4877]
[1610022580983,3.674,1208.9,1206.6,5.7912]
[1610022581280,4.00959,1208.8,1206.6,5.7912]
[1610022581683,11.051,1209.9,1207.5,52.036]
[1610022581882,11.051,1209.9,1206.6,5.7912]
[1610022582084,11.051,1209.9,1207.6,62.4983]
[1610022582282,11.051,1209.9,1206.6,5.7912]
[1610022582482,11.051,1209.9,1208.0,58.5298]
[1610022583383,4.00959,1208.8,1208.0,58.5298]
[1610022583583,4.00959,1208.8,1206.6,11.6582]
[1610022583983,4.00959,1208.8,1207.1,46.4193]
[1610022584183,7.68359,1208.8,1207.1,46.4193]
[1610022591490,4.00959,1208.2,1207.1,46.4193]
[1610022591891,3.674,1208.8,1207.1,46.4193]
[1610022593595,4.00959,1208.6,1207.1,46.4193]
[1610022595498,4.00959,1208.3,1207.1,46.4193]
[1610022597398,3.674,1208.8,1207.1,46.4193]
[1610022597596,4.00959,1208.5,1207.1,46.4193]
[1610022598198,3.674,1208.8,1206.6,11.6582]
[1610022598397,3.674,1208.8,1207.8,47.0238]
[1610022598599,14.666,1209.8,1207.8,47.0238]
[1610022599501,4.00959,1208.8,1207.8,47.0238]
[1610022600304,14.666,1209.8,1207.8,47.0238]
[1610022601706,4.00959,1209.0,1207.8,47.0238]
[1610022611416,14.666,1209.8,1207.8,47.0238]
[1610022611619,14.666,1209.8,1206.6,11.6582]
[1610022611620,4.00959,1209.6,1206.6,11.6582]
[1610022611815,4.00959,1209.6,1208.0,47.0485]
[1610022612016,4.00959,1209.6,1206.6,11.6582]
[1610022612218,4.00959,1209.6,1208.0,48.9098]
[1610022612417,4.00959,1209.6,1206.6,11.6582]
[1610022612617,4.00959,1209.6,1208.7,56.8358]
[1610022613418,4.00959,1209.6,1208.8,47.0772]
[1610022613817,4.00959,1209.6,1207.4,11.3642]
[1610022614020,4.00959,1209.6,1208.7,56.9771]
[1610022615518,11.051,1211.0,1207.4,11.3642]
[1610022615719,4.00959,1210.4,1207.4,11.3642]
[1610022615918,4.00959,1210.4,1209.5,52.55]
[1610022617721,4.00959,1210.2,1209.5,52.55]
[1610022619924,4.00959,1210.2,1208.0,11.9617]
[1610022620124,7.68359,1210.2,1209.3,67.825]
[1610022620328,7.68359,1210.2,1208.0,11.9617]
[1610022620526,4.00959,1210.2,1209.9,52.6647]
[1610022622530,11.051,1211.0,1209.9,52.6647]
[1610022623329,3.674,1211.0,1209.9,52.6647]
[1610022623831,4.00959,1210.6,1209.9,52.6647]
[1610022624732,3.674,1211.0,1208.8,11.9903]
[1610022624932,3.674,1211.0,1210.5,47.6901]
[1610022625133,10.992,1211.3,1210.5,47.6901]
[1610022625733,4.00959,1210.8,1210.5,47.6901]
[1610022626134,7.68359,1210.8,1209.5,53.8895]
[1610022626534,4.00959,1210.8,1209.5,53.8895]
[1610022629841,4.00959,1210.6,1209.5,53.8895]
[1610022630642,68.5431,1212.0,1209.5,53.8895]
[1610022631640,11.051,1212.0,1208.8,11.9903]
[1610022631841,4.00959,1210.8,1209.9,55.2999]
[1610022632042,4.00959,1210.8,1208.8,11.9903]
[1610022632242,7.68359,1210.8,1210.3,47.1839]
[1610022632442,4.00959,1210.8,1210.3,47.1839]
[1610022635749,4.00959,1210.6,1210.3,47.1839]
[1610022637050,4.00959,1210.6,1208.8,11.9903]
[1610022637252,4.00959,1210.6,1209.1,55.1743]
[1610022637850,4.00959,1210.2,1209.1,55.1743]
[1610022640455,81.8076,1211.2,1209.1,55.1743]
[1610022641354,14.666,1211.2,1208.8,11.9903]
[1610022641556,14.666,1211.2,1209.5,50.8453]
[1610022641755,4.00959,1210.4,1209.5,50.8453]
[1610022643857,4.00959,1210.2,1209.5,50.8453]
[1610022644757,14.666,1211.2,1209.5,50.8453]
[1610022646860,14.666,1211.2,1208.8,11.9903]
[1610022647061,14.666,1211.2,1209.9,46.1432]
[1610022647262,10.992,1211.2,1208.8,11.9903]
[1610022647461,14.666,1211.2,1209.9,53.6292]
[1610022647662,10.992,1211.2,1208.8,11.9903]
[1610022647862,4.00959,1210.7,1209.8,50.3023]
[1610022650266,3.674,1211.2,1208.8,11.9903]
[1610022650465,11.051,1212.0,1208.8,11.9903]
[1610022650667,11.051,1212.0,1210.3,56.5977]
[1610022651467,10.751,1212.0,1210.3,56.5977]